bitfinex/quotes_SOLUSD_20250726
["timestamp","ask_amount","ask_price","bid_price","bid_amount"]
[1753498192135,3.76344533,186.53,186.51,38.32]
[1753498192318,3.76344533,186.52,186.51,38.32]
[1753498192720,5.3608289,186.54,186.51,38.32]
[1753498192937,3.76344533,186.52,186.51,38.32]
[1753498194736,9.12480068,186.52,186.51,38.32]
[1753498195433,9.12480068,186.52,186.49,38.32]
[1753498195609,9.12480068,186.52,186.45,10.69776236]
[1753498195811,9.12480068,186.52,186.46,38.3]
[1753498197108,3.76344533,186.51,186.46,38.3]
[1753498197712,3.76344533,186.5,186.46,38.3]
[1753498197916,3.76344533,186.49,186.46,38.3]
[1753498201622,9.12580653,186.49,186.46,38.3]
[1753498203022,26.0,186.53,186.46,38.3]
[1753498203023,3.76344533,186.48,186.46,38.3]
[1753498203627,3.76344533,186.49,186.46,38.3]
[1753498205345,9.12550974,186.5,186.46,38.3]
[1753498208648,5.3616428,186.51,186.46,38.3]
[1753498208826,3.76344533,186.5,186.46,38.3]
[1753498209937,9.12540905,186.5,186.46,38.3]
[1753498211043,2.79590282,186.53,186.46,42.06344533]
[1753498211248,3.76344533,186.55,186.49,3.76344533]
[1753498211445,26.0,186.54,186.5,38.28]
[1753498213051,35.12409826,186.55,186.5,38.28]
[1753498214242,26.0,186.55,186.5,42.04344533]
[1753498214839,3.76344533,186.54,186.5,38.28]
[1753498215044,3.76344533,186.53,186.5,38.28]
[1753498217157,9.12440048,186.54,186.5,38.28]
[1753498217460,3.76344533,186.52,186.51,38.26]
[1753498218461,35.12430449,186.54,186.51,38.26]
[1753498218659,3.76344533,186.53,186.52,38.26]
[1753498219659,9.12467266,186.53,186.5,38.24]
[1753498219961,3.76344533,186.51,186.5,38.24]
[1753498220545,26.0,186.5,186.45,87.4]
[1753498220749,3.76344533,186.47,186.46,38.24]
[1753498221964,9.12623827,186.47,186.46,38.24]
[1753498222560,16.78468397,186.52,186.46,38.24]
[1753498222561,3.76344533,186.48,186.46,38.24]
[1753498222762,29.76344533,186.49,186.46,38.24]
[1753498222955,9.12573265,186.49,186.46,38.24]
[1753498223165,3.76344533,186.5,186.46,38.24]
[1753498223662,9.12534889,186.51,186.46,38.24]
[1753498223877,5.36143564,186.52,186.46,47.36647802]
[1753498224973,3.76344533,186.52,186.46,47.36647802]
[1753498225666,3.76344533,186.52,186.46,43.60303269]
[1753498225865,3.76344533,186.51,186.46,38.24]
[1753498226070,3.76344533,186.49,186.46,38.24]
[1753498227054,9.1258637,186.49,186.46,38.24]
[1753498227462,3.76344533,186.48,186.47,38.24]
[1753498228452,3.76344533,186.53,186.47,38.24]
[1753498228658,3.76344533,186.54,186.48,3.76344533]
[1753498228860,26.0,186.54,186.48,3.76344533]
[1753498229062,26.0,186.54,186.49,3.76344533]
[1753498229263,26.0,186.54,186.5,38.22]
[1753498231275,31.36078401,186.54,186.5,38.22]
[1753498232464,3.76344533,186.56,186.5,42.51963835]
[1753498232771,3.76344533,186.58,186.52,3.76344533]
[1753498233071,26.0,186.57,186.53,38.22]
[1753498234156,26.0,186.57,186.52,3.76344533]
[1753498234467,31.36004895,186.57,186.53,38.22]
[1753498234843,26.0,186.57,186.53,38.22]
[1753498235049,3.76344533,186.6,186.54,3.76344533]
[1753498235468,9.12263759,186.6,186.54,3.76344533]
[1753498236173,9.12263759,186.6,186.53,47.3443841]
[1753498236680,9.1222403,186.61,186.55,3.76344533]
[1753498236883,5.35879497,186.61,186.53,47.3443841]
[1753498237060,3.76344533,186.6,186.53,47.3443841]
[1753498237770,3.76344533,186.59,186.53,38.22]
[1753498237968,3.76344533,186.59,186.53,47.34444992]
[1753498238182,3.76344533,186.59,186.53,41.98344533]
[1753498240086,9.12287806,186.59,186.53,41.98344533]
[1753498240667,9.12287806,186.59,186.53,38.22]
[1753498241176,9.12325867,186.58,186.53,38.22]
[1753498241382,3.76344533,186.56,186.52,87.4]
[1753498241568,3.76344533,186.56,186.53,38.2]
[1753498242073,3.76344533,186.55,186.53,38.2]
[1753498243370,9.1240288,186.55,186.53,38.2]
[1753498243573,3.76344533,186.54,186.53,38.2]
[1753498244282,20.5481293,186.54,186.53,38.2]
[1753498245270,5.36106792,186.53,186.5,38.18]
[1753498245476,3.76344533,186.52,186.5,38.18]
[1753498246084,9.12451325,186.53,186.5,38.18]
[1753498246285,9.12427893,186.54,186.5,38.18]
[1753498247985,5.35848247,186.62,186.53,3.76344533]
[1753498248188,9.1219278,186.62,186.56,3.76344533]
[1753498248482,5.35848247,186.62,186.56,3.76344533]
[1753498249071,9.1219278,186.62,186.56,3.76344533]
[1753498250288,9.1219278,186.62,186.55,9.12382527]
[1753498252789,5.35848247,186.62,186.55,9.12382527]
[1753498252989,9.1219278,186.62,186.55,9.12382527]
[1753498254993,5.35848247,186.62,186.55,9.12382527]
[1753498255168,9.1219278,186.62,186.55,9.12382527]
[1753498257396,9.1219278,186.62,186.56,3.76344533]
[1753498260297,9.1219278,186.62,186.55,5.36037994]
[1753498260298,9.1219278,186.62,186.55,9.12382527]
[1753498261898,3.76344533,186.6,186.54,87.4]
[1753498262078,3.76344533,186.59,186.55,38.14]
[1753498262275,3.76344533,186.58,186.55,38.14]
[1753498262482,3.76344533,186.58,186.52,96.52473992]
[1753498262799,3.76344533,186.58,186.53,38.14]
[1753498263172,3.76344533,186.58,186.52,3.76344533]
[1753498263378,3.76344533,186.58,186.53,38.14]
[1753498263599,3.76344533,186.54,186.45,95.4616]
[1753498263892,3.76344533,186.53,186.47,9.1259922]
[1753498264275,3.76344533,186.52,186.46,47.2464677]
[1753498264480,5.36108101,186.53,186.46,47.2464677]
[1753498264481,16.78468397,186.56,186.47,3.76344533]
[1753498264676,3.76344533,186.55,186.48,3.76344533]
[1753498265700,3.76344533,186.54,186.48,9.12579655]
[1753498266080,9.12412686,186.55,186.49,3.76344533]
[1753498266281,9.12412686,186.55,186.5,38.12]
[1753498267203,9.12412686,186.55,186.51,38.12]
[1753498267204,3.76344533,186.54,186.51,38.12]
[1753498267890,29.76344533,186.57,186.51,41.88344533]
[1753498268092,26.0,186.57,186.53,3.76344533]
[1753498268990,26.0,186.57,186.53,9.12448925]
[1753498270915,26.0,186.57,186.53,3.76344533]
[1753498271212,26.0,186.57,186.52,3.76344533]
[1753498271388,26.0,186.57,186.51,47.24481986]
[1753498271794,35.12344049,186.57,186.52,38.12]
[1753498272500,31.35999516,186.57,186.52,38.12]
[1753498272812,35.12344049,186.57,186.52,38.12]
[1753498273122,9.12344049,186.57,186.52,38.12]
[1753498273421,9.12313282,186.58,186.52,43.48134587]
[1753498274232,9.12313282,186.58,186.52,38.12]
[1753498278810,5.3590568,186.6,186.52,38.12]
[1753498279012,3.76344533,186.58,186.52,38.12]
[1753498279889,48.14345359,186.61,186.52,38.12]
[1753498280120,3.76344533,186.58,186.52,38.12]
[1753498281123,9.12335497,186.58,186.52,38.12]
[1753498286623,9.12335497,186.58,186.52,47.24471246]
[1753498287316,31.35940358,186.59,186.54,3.76344533]
[1753498287522,35.12227928,186.61,186.55,47.20390539]
[1753498287817,39.7362,186.64,186.55,47.20390539]
[1753498287818,3.76344533,186.64,186.57,3.76344533]
[1753498288015,3.76344533,186.64,186.58,38.08]
[1753498288217,26.0,186.63,186.58,38.08]
[1753498289909,31.35828231,186.63,186.58,38.08]
[1753498290222,5.35828231,186.63,186.58,38.08]
[1753498291841,2.79379877,186.66,186.6,3.76344533]
[1753498291998,15.01098076,186.7,186.61,41.84344533]
[1753498292195,3.76344533,186.68,186.62,3.76344533]
[1753498292511,26.0,186.66,186.62,3.76344533]
[1753498292714,9.1196677,186.7,186.63,3.76344533]
[1753498293035,5.35622237,186.7,186.64,41.82344533]
[1753498293729,9.1196677,186.7,186.64,38.06]
[1753498296438,3.76344533,186.67,186.63,2.6316168]
[1753498296732,3.76344533,186.66,186.65,38.06]
[1753498296925,3.76344533,186.66,186.64,38.06]
[1753498297428,3.76344533,186.67,186.64,38.06]
[1753498297932,9.12072012,186.67,186.64,38.06]
[1753498299131,5.35727479,186.67,186.64,38.06]
[1753498302436,5.35676023,186.68,186.64,38.06]
[1753498303133,3.76344533,186.67,186.64,38.06]
[1753498303319,3.76344533,186.67,186.61,91.16344533]
[1753498303521,3.76344533,186.67,186.61,3.76344533]
[1753498303847,3.76344533,186.67,186.62,38.04]
[1753498304512,16.78468397,186.69,186.62,38.04]
[1753498304713,3.76344533,186.67,186.62,38.04]
[1753498304923,16.78468397,186.69,186.61,3.76344533]
[1753498305249,3.76344533,186.68,186.62,3.76344533]
[1753498305417,3.76344533,186.67,186.62,38.04]
[1753498305733,3.76344533,186.67,186.63,38.04]
[1753498306639,5.35733419,186.66,186.64,38.04]
[1753498307731,5.35733419,186.66,186.6,3.76344533]
[1753498307909,3.76344533,186.64,186.61,38.04]
[1753498308415,3.76344533,186.65,186.61,38.04]
[1753498308616,5.35733419,186.66,186.61,41.80344533]
[1753498309827,5.35733419,186.66,186.61,38.04]
[1753498310334,9.12077952,186.66,186.61,38.04]
[1753498311037,18.7486608,186.68,186.61,38.04]
[1753498311227,3.76344533,186.64,186.61,38.04]
[1753498313133,5.35819535,186.63,186.61,38.04]
[1753498313335,9.12127394,186.65,186.61,38.04]
[1753498313969,3.76344533,186.63,186.61,38.04]
[1753498315237,9.12164116,186.63,186.61,38.04]
[1753498315442,3.76344533,186.62,186.61,38.04]
[1753498315647,9.12164116,186.63,186.61,38.04]
[1753498316614,16.78468397,186.66,186.61,38.04]
[1753498316844,26.0,186.68,186.62,4.29929357]
[1753498317010,31.35684878,186.68,186.62,4.29929357]
[1753498317215,35.12029411,186.68,186.62,0.53584824]
[1753498317733,3.76344533,186.67,186.61,43.39863764]
[1753498318340,35.12029411,186.68,186.61,47.16208297]
[1753498318544,3.76344533,186.66,186.62,38.02]
[1753498320128,3.76344533,186.65,186.62,38.02]
[1753498320330,3.76344533,186.63,186.62,38.02]
[1753498320637,5.35742565,186.66,186.62,38.02]
[1753498320811,3.76344533,186.63,186.62,38.02]
[1753498329222,16.78468397,186.67,186.62,38.02]
[1753498329223,16.78468397,186.67,186.62,41.78344533]
[1753498329427,26.0,186.68,186.63,3.76344533]
[1753498329764,9.1195713,186.71,186.64,3.76344533]
[1753498330052,9.1195713,186.71,186.62,43.91425817]
[1753498330053,3.76344533,186.67,186.62,87.4]
[1753498330262,3.76344533,186.67,186.61,6.1921]
[1753498330263,3.76344533,186.67,186.65,38.22]
[1753498331236,26.0,186.68,186.65,38.22]
[1753498331441,3.76344533,186.67,186.65,38.22]
[1753498332134,31.35680713,186.68,186.65,38.22]
[1753498332345,3.76344533,186.67,186.65,38.22]
[1753498333267,3.76344533,186.66,186.65,38.22]
[1753498333472,26.0,186.68,186.65,38.22]
[1753498333762,3.76344533,186.66,186.65,38.22]
[1753498334565,9.12077952,186.66,186.65,38.22]
[1753498336366,3.76344533,186.66,186.65,38.22]
[1753498337077,3.76344533,186.66,186.64,38.2]
[1753498337241,3.76344533,186.65,186.64,38.2]
[1753498337439,3.76344533,186.65,186.63,38.18]
[1753498337643,3.76344533,186.64,186.63,38.18]
[1753498338459,9.1213536,186.64,186.63,38.18]
[1753498339038,3.76344533,186.71,186.63,47.30153973]
[1753498339235,3.76344533,186.71,186.65,5.34184533]
[1753498339439,16.78468397,186.72,186.66,3.76344533]
[1753498339738,9.1187712,186.73,186.67,38.18]
[1753498340052,3.76344533,186.72,186.67,38.18]
[1753498340345,5.35532587,186.73,186.67,38.18]
[1753498340545,3.76344533,186.73,186.67,43.53699105]
[1753498340750,3.76344533,186.73,186.67,47.30043638]
[1753498341057,3.76344533,186.72,186.67,43.53699105]
[1753498342437,3.76344533,186.72,186.67,38.18]
[1753498342846,5.35536123,186.73,186.67,38.18]
[1753498343156,3.76344533,186.72,186.67,38.18]
[1753498343472,3.76344533,186.72,186.67,43.53695671]
[1753498345362,28.79295941,186.75,186.67,43.53695671]
[1753498345551,3.76344533,186.72,186.67,43.53695671]
[1753498345867,3.76344533,186.73,186.67,47.30040204]
[1753498346244,3.76344533,186.73,186.67,41.94344533]
[1753498346444,31.35503909,186.74,186.67,41.94344533]
[1753498346643,3.76344533,186.73,186.67,41.94344533]
[1753498347150,3.76344533,186.72,186.67,38.18]
[1753498348169,9.11911127,186.72,186.67,38.18]
[1753498349576,3.76344533,186.72,186.67,38.18]
[1753498350070,3.76344533,186.7,186.65,1.5784]
[1753498350250,3.76344533,186.7,186.68,38.06]
[1753498350846,3.76344533,186.7,186.65,1.5784]
[1753498351046,3.76344533,186.68,186.66,38.06]
[1753498351447,3.76344533,186.67,186.66,38.06]
[1753498351874,9.12049252,186.67,186.66,38.06]
[1753498352074,16.78468397,186.66,186.57,6.1538]
[1753498352275,9.12049252,186.67,186.6,3.76344533]
[1753498352576,9.12049252,186.67,186.61,3.76344533]
[1753498352577,3.76344533,186.67,186.61,3.76344533]
[1753498352777,3.76344533,186.67,186.62,38.72]
[1753498353151,26.0,186.69,186.62,38.72]
[1753498353480,3.76344533,186.7,186.64,3.76344533]
[1753498353789,3.76344533,186.71,186.65,3.76344533]
[1753498353988,3.76344533,186.71,186.66,38.72]
[1753498354153,3.76344533,186.72,186.66,42.48344533]
[1753498354483,9.11879614,186.73,186.66,42.48344533]
[1753498356179,8.14796884,186.75,186.67,3.76344533]
[1753498356369,8.14796884,186.75,186.69,3.76344533]
[1753498356370,9.11845476,186.75,186.69,3.76344533]
[1753498356690,9.11845476,186.75,186.7,38.68]
[1753498358390,5.35500943,186.75,186.7,38.68]
[1753498358803,9.11845476,186.75,186.7,38.68]
[1753498359212,19.91814414,186.78,186.7,47.79961399]
[1753498359500,3.76344533,186.77,186.7,49.86783262]
[1753498359683,3.76344533,186.76,186.7,49.86783262]
[1753498360291,9.11775895,186.77,186.7,49.86783262]
[1753498360476,9.11775895,186.77,186.7,40.74821863]
[1753498360675,3.76344533,186.76,186.7,40.2126]
[1753498361083,3.76344533,186.75,186.7,40.2126]
[1753498361690,5.35431362,186.77,186.7,40.2126]
[1753498361894,3.76344533,186.76,186.7,40.2126]
[1753498363035,3.76344533,186.76,186.7,43.97604533]
[1753498363518,9.11795314,186.76,186.7,43.97604533]
[1753498363701,9.11795314,186.76,186.7,40.2126]
[1753498364527,3.76344533,186.73,186.71,38.6]
[1753498365216,3.76344533,186.74,186.71,38.6]
[1753498365817,22.1388629,186.77,186.71,38.6]
[1753498366019,3.76344533,186.75,186.71,38.6]
[1753498366320,3.76344533,186.76,186.71,38.6]
[1753498366543,9.11762426,186.77,186.71,38.6]
[1753498367031,9.11762426,186.77,186.71,44.7594]
[1753498367621,26.0,186.78,186.72,4.29900659]
[1753498367622,29.76344533,186.78,186.72,4.29900659]
[1753498367810,26.0,186.78,186.72,4.29900659]
[1753498368008,35.11746503,186.78,186.71,137.51527275]
[1753498368220,35.11746503,186.78,186.71,141.27871808]
[1753498370019,29.76344533,186.78,186.71,141.27871808]
[1753498370200,26.0,186.78,186.72,3.76344533]
[1753498370401,29.76344533,186.78,186.72,3.76344533]
[1753498371104,29.76344533,186.78,186.72,91.16344533]
[1753498371431,29.76344533,186.78,186.72,91.69900659]
[1753498371920,29.76344533,186.78,186.73,5.35532587]
[1753498372116,29.76344533,186.78,186.74,38.56]
[1753498373422,26.0,186.78,186.74,38.56]
[1753498373721,29.76344533,186.78,186.74,38.56]
[1753498374038,35.11736739,186.78,186.74,38.56]
[1753498374423,31.35392206,186.78,186.74,38.56]
[1753498374908,35.11736739,186.78,186.74,38.56]
[1753498377223,31.35392206,186.78,186.74,38.56]
[1753498377524,35.11736739,186.78,186.74,38.56]
[1753498380412,9.11766702,186.77,186.74,38.56]
[1753498380614,3.76344533,186.76,186.74,38.56]
[1753498380815,3.76344533,186.77,186.74,38.56]
[1753498381709,31.35397007,186.78,186.74,38.56]
[1753498382026,3.76344533,186.77,186.74,38.56]
[1753498384229,9.11768535,186.77,186.74,38.56]
[1753498384401,26.0,186.74,186.67,6.094]
[1753498384608,26.0,186.74,186.68,39.38]
[1753498384807,18.73968736,186.77,186.68,39.38]
[1753498384808,5.35424002,186.77,186.7,3.76344533]
[1753498385007,16.78468397,186.76,186.71,39.38]
[1753498385207,5.35424002,186.77,186.72,39.68]
[1753498385425,31.35391659,186.78,186.72,43.44344533]
[1753498385622,5.35391659,186.78,186.72,43.44344533]
[1753498385933,13.61708592,186.79,186.72,43.44344533]
[1753498386112,13.61708592,186.79,186.73,0.53553258]
[1753498386622,4.500007,186.79,186.73,9.65430044]
[1753498386925,4.500007,186.79,186.77,3.76344533]
[1753498387110,4.500007,186.79,186.78,43.93883455]
[1753498387902,4.500007,186.79,186.78,43.40344533]
[1753498390334,4.500007,186.79,186.78,39.64]
[1753498390633,4.500007,186.79,186.78,40.2]
[1753498390936,13.61705798,186.79,186.78,40.2]
[1753498391528,8.26345233,186.79,186.78,40.2]
[1753498392241,13.61705798,186.79,186.78,40.2]
[1753498393035,13.61705798,186.79,186.72,9.11895868]
[1753498393338,13.61705798,186.79,186.73,40.32]
[1753498393522,8.26345233,186.79,186.72,9.61895868]
[1753498393722,4.500007,186.79,186.76,3.76344533]
[1753498393926,4.500007,186.79,186.77,44.02344533]
[1753498394119,4.500007,186.79,186.78,40.26]
[1753498394324,4.500007,186.79,186.78,44.02344533]
[1753498395232,4.500007,186.79,186.78,46.11823455]
[1753498395632,4.500007,186.79,186.78,51.47212682]
[1753498397124,4.500007,186.79,186.78,11.21212682]
[1753498397322,4.500007,186.79,186.78,51.39212682]
[1753498400945,4.500007,186.79,186.78,138.79212682]
[1753498401155,4.500007,186.79,186.78,138.2567376]
[1753498403436,4.500007,186.79,186.78,138.7567376]
[1753498408945,4.500007,186.79,186.78,98.5767376]
[1753498409249,4.500007,186.79,186.78,139.03212682]
[1753498409552,4.500007,186.79,186.78,138.4967376]
[1753498411367,4.500007,186.79,186.78,98.5767376]
[1753498411530,4.500007,186.79,186.78,138.93212682]
[1753498411730,4.500007,186.79,186.78,136.8373376]
[1753498414565,4.500007,186.79,186.78,97.0173376]
[1753498414779,4.500007,186.79,186.78,136.7973376]
[1753498435180,1e-08,186.79,186.78,157.62979004]
[1753498435859,1e-08,186.79,186.78,153.86634471]
[1753498436802,27.5474,186.92,186.81,26.0]
[1753498437093,27.5474,186.92,186.86,3.76344533]
[1753498437384,32.89737692,186.92,186.87,39.28]
[1753498437560,32.89737692,186.92,186.87,43.04344533]
[1753498437962,32.89737692,186.92,186.87,39.28]
[1753498438786,32.89737692,186.92,186.88,39.26]
[1753498439559,36.66082225,186.92,186.88,39.26]
[1753498441890,32.89737692,186.92,186.89,39.18]
[1753498442180,32.89737692,186.92,186.82,87.4]
[1753498442181,16.78468397,186.91,186.82,87.4]
[1753498442554,16.78468397,186.91,186.83,39.18]
[1753498442555,5.35045478,186.9,186.83,39.18]
[1753498443063,3.76344533,186.87,186.83,39.18]
[1753498444057,3.76344533,186.88,186.83,39.18]
[1753498444262,3.76344533,186.88,186.84,39.16]
[1753498444680,9.11447118,186.89,186.84,39.16]
[1753498444885,5.35102585,186.89,186.84,39.16]
[1753498445192,5.35016853,186.91,186.85,42.90344533]
[1753498447482,3.76344533,186.89,186.85,39.14]
[1753498447691,3.76344533,186.86,186.83,87.4]
[1753498447876,3.76344533,186.86,186.84,39.1]
[1753498449117,9.11517111,186.86,186.84,39.1]
[1753498449662,5.35172578,186.86,186.81,125.94]
[1753498449978,3.76344533,186.83,186.81,38.54]
[1753498450172,3.76344533,186.82,186.81,38.54]
[1753498450372,3.76344533,186.82,186.81,77.62]
[1753498450579,3.76344533,186.82,186.81,39.08]
[1753498450966,1.5305,186.85,186.81,39.08]
[1753498451289,9.11590964,186.83,186.81,39.08]
[1753498451486,9.11590964,186.83,186.77,3.76344533]
[1753498451694,9.11590964,186.83,186.78,39.1]
[1753498452693,5.35218063,186.84,186.78,42.86344533]
[1753498452994,5.29394533,186.85,186.79,3.76344533]
[1753498453165,6.88238664,186.85,186.79,5.35360565]
[1753498453369,13.37467769,186.93,186.81,3.76344533]
[1753498453587,13.37467769,186.93,186.83,3.76344533]
[1753498453588,3.76344533,186.9,186.83,3.76344533]
[1753498453765,3.76344533,186.9,186.84,3.76344533]
[1753498453966,3.76344533,186.9,186.85,39.12]
[1753498454995,9.11392303,186.9,186.85,39.12]
[1753498455690,9.1136523,186.91,186.85,42.88344533]
[1753498455893,5.35020697,186.91,186.85,42.88344533]
[1753498456194,5.35020697,186.91,186.85,48.23531288]
[1753498457783,31.34993467,186.92,186.86,42.82344533]
[1753498457983,5.34993467,186.92,186.86,42.82344533]
[1753498458884,5.34993467,186.92,186.86,48.17500657]
[1753498459798,5.34962598,186.93,186.87,3.76344533]
[1753498461001,5.34962598,186.93,186.87,9.1146628]
[1753498462603,5.34962598,186.93,186.87,5.35121747]
[1753498462772,3.76344533,186.93,186.87,9.1146628]
[1753498463485,3.76344533,186.93,186.86,131.81154516]
[1753498463679,3.76344533,186.93,186.86,135.57499049]
[1753498463877,3.76344533,186.92,186.86,135.57499049]
[1753498464796,9.11345459,186.92,186.86,126.46]
[1753498465100,9.11345459,186.92,186.86,130.22344533]
[1753498465493,9.11345459,186.92,186.86,126.46]
[1753498465700,2.78947412,186.96,186.9,3.76344533]
[1753498465893,5.0,187.0,186.91,42.68344533]
[1753498465894,13.21148053,186.98,186.91,42.68344533]
[1753498466578,7.863268,186.98,186.91,42.68344533]
[1753498466778,7.863268,186.98,186.92,5.3498823]
[1753498467194,9.44798992,186.98,186.92,5.3498823]
[1753498467396,7.863268,186.98,186.92,9.11332763]
[1753498467603,9.44799786,186.98,186.91,48.03354527]
[1753498467780,3.76344533,186.97,186.91,44.27009994]
[1753498470379,4.09982267,186.98,186.91,44.27009994]
[1753498470703,7.863268,186.98,186.92,3.76344533]
[1753498470903,4.09982267,186.98,186.94,3.76344533]
[1753498471112,4.09982267,186.98,186.95,38.84]
[1753498471909,4.09982267,186.98,186.95,42.60344533]
[1753498472110,4.09982267,186.98,186.95,47.95243823]
[1753498473891,4.09982267,186.98,186.95,38.84]
[1753498475400,7.863268,186.98,186.94,87.4]
[1753498475604,7.863268,186.98,186.96,38.76]
[1753498475808,7.863268,186.98,186.94,87.4]
[1753498475809,3.76344533,186.97,186.94,87.4]
[1753498475993,9.11218302,186.96,186.95,38.74]
[1753498476909,9.11218302,186.96,186.89,93.517]
[1753498477111,3.76344533,186.95,186.9,38.74]
[1753498477597,3.76344533,186.94,186.88,98.1346168]
[1753498477803,3.76344533,186.94,186.89,38.74]
[1753498478004,9.1128549,186.94,186.89,38.74]
[1753498479217,9.1128549,186.94,186.88,98.1346168]
[1753498479516,9.1128549,186.94,186.89,38.7]
[1753498479717,3.76344533,186.91,186.85,26.0]
[1753498479919,3.76344533,186.91,186.86,38.7]
[1753498481018,9.11367722,186.91,186.86,38.7]
[1753498481200,3.76344533,186.9,186.86,38.7]
[1753498481393,3.76344533,186.91,186.86,44.05158391]
[1753498481916,9.11306547,186.93,186.86,47.81502924]
[1753498482416,5.34962014,186.93,186.86,47.81502924]
[1753498482720,9.11306547,186.93,186.86,47.81502924]
[1753498483594,27.6515,186.96,186.86,47.81502924]
[1753498483595,22.13370777,186.95,186.86,47.81502924]
[1753498483818,3.76344533,186.93,186.86,47.81502924]
[1753498485118,9.11353422,186.92,186.86,42.46344533]
[1753498485423,9.11353422,186.92,186.86,38.7]
[1753498487102,3.76344533,186.92,186.86,47.81501358]
[1753498487504,3.76344533,186.93,186.87,3.76344533]
[1753498488401,3.76344533,186.95,186.88,3.76344533]
[1753498488606,3.76344533,186.95,186.89,38.6]
[1753498488918,3.76344533,186.95,186.89,42.36344533]
[1753498489498,3.76344533,186.95,186.89,135.11392743]
[1753498489713,9.11224071,186.96,186.89,135.11392743]
[1753498490023,3.76344533,186.95,186.89,135.11392743]
[1753498491720,3.76344533,186.94,186.89,38.6]
[1753498492806,3.76344533,186.92,186.87,88.9323]
[1753498493013,3.76344533,186.92,186.88,38.54]
[1753498493921,3.76344533,186.91,186.84,3.76344533]
[1753498494143,3.76344533,186.9,186.85,38.52]
[1753498494920,3.76344533,186.91,186.85,43.87181349]
[1753498495909,9.11376955,186.91,186.85,43.87181349]
[1753498496510,3.76344533,186.9,186.85,38.52]
[1753498497617,13.37327484,186.94,186.85,38.52]
[1753498497825,3.76344533,186.93,186.86,3.76344533]
[1753498498037,3.76344533,186.92,186.86,3.76344533]
[1753498498533,3.76344533,186.92,186.86,91.16344533]
[1753498498732,9.11340926,186.92,186.86,91.16344533]
[1753498499234,9.11340926,186.92,186.86,96.51497548]
[1753498500525,5.34930993,186.94,186.86,96.51497548]
[1753498500735,3.76344533,186.93,186.86,96.51497548]
[1753498501032,3.76344533,186.92,186.86,96.51497548]
[1753498501731,3.76344533,186.91,186.86,87.4]
[1753498501930,3.76344533,186.89,186.87,38.54]
[1753498502119,3.76344533,186.9,186.87,38.54]
[1753498502321,9.11310645,186.93,186.87,38.54]
[1753498503132,3.76344533,186.92,186.87,38.54]
[1753498503646,9.11339686,186.92,186.87,38.54]
[1753498504337,3.76344533,186.92,186.87,43.89130977]
[1753498505462,9.11281414,186.94,186.87,47.6547551]
[1753498506024,3.76344533,186.93,186.87,43.89130977]
[1753498506455,9.11281414,186.94,186.87,47.6547551]
[1753498506845,5.34936881,186.94,186.87,47.6547551]
[1753498507031,9.11281414,186.94,186.87,47.6547551]
[1753498510241,9.11281414,186.94,186.87,135.0547551]
[1753498511828,9.11281414,186.94,186.88,9.11437466]
[1753498512153,9.11281414,186.94,186.89,38.44]
[1753498513257,9.1124492,186.96,186.89,47.55409543]
[1753498513837,3.76344533,186.95,186.89,47.55409543]
[1753498514668,9.1124492,186.96,186.89,47.55409543]
[1753498514870,3.76344533,186.95,186.89,43.7906501]
[1753498515162,9.11249512,186.95,186.89,43.7906501]
[1753498516030,9.11249512,186.95,186.89,131.1906501]
[1753498516443,3.76344533,186.95,186.89,131.1906501]
[1753498516938,9.11247393,186.95,186.89,131.1906501]
[1753498521538,9.11247393,186.95,186.9,38.4]
[1753498522372,9.11247393,186.95,186.91,38.4]
[1753498523450,5.3490286,186.95,186.91,38.4]
[1753498523649,3.76344533,186.92,186.89,87.4]
[1753498523965,5.3490286,186.95,186.9,38.4]
[1753498524218,3.76344533,186.92,186.9,38.4]
[1753498525067,9.11333137,186.92,186.9,38.4]
[1753498527349,5.34988604,186.92,186.9,38.4]
[1753498527558,3.76344533,186.91,186.9,38.4]
[1753498527754,3.76344533,186.91,186.89,87.4]
[1753498527979,9.11333137,186.92,186.9,38.4]
[1753498528179,5.34988604,186.92,186.91,38.4]
[1753498529282,3.76344533,186.94,186.91,38.4]